bitfinex/quotes_BTCUSD_20241110
["timestamp","ask_amount","ask_price","bid_price","bid_amount"]
[1731274601785,0.25154421,79616.0,79615.0,0.001678]
[1731274601987,0.25825652,79616.0,79615.0,0.001678]
[1731274604070,0.4720683,79616.0,79615.0,0.001678]
[1731274604215,0.28125652,79616.0,79615.0,0.001678]
[1731274604423,0.38125652,79616.0,79615.0,0.001678]
[1731274608119,0.38125652,79616.0,79615.0,0.00110516]
[1731274610696,0.38125652,79616.0,79615.0,5.16e-06]
[1731274613021,0.38125652,79616.0,79614.0,0.125606]
[1731274613022,0.1,79615.0,79614.0,0.125606]
[1731274613242,0.22594221,79615.0,79614.0,0.1581666]
[1731274613442,0.22880875,79615.0,79614.0,0.14441797]
[1731274613672,0.22880875,79615.0,79614.0,0.14364085]
[1731274613883,0.22880875,79615.0,79614.0,0.14283818]
[1731274614092,0.22880875,79615.0,79614.0,0.02]
[1731274614300,0.22880875,79615.0,79614.0,0.01919457]
[1731274614508,0.2337858,79615.0,79614.0,0.01835818]
[1731274614722,0.2337858,79615.0,79614.0,0.01796267]
[1731274614954,0.3823898,79615.0,79614.0,0.01796267]
[1731274615161,0.5,79609.0,79592.0,0.251278]
[1731274615365,0.21770189,79598.0,79591.0,0.19081178]
[1731274615533,0.12564,79592.0,79591.0,0.19081178]
[1731274615711,0.023,79599.0,79589.0,0.125644]
[1731274615911,0.00493487,79592.0,79589.0,0.125644]
[1731274616112,0.125636,79595.0,79589.0,0.125644]
[1731274616313,0.0049338,79591.0,79586.0,0.12565]
[1731274616636,0.12564,79593.0,79584.0,0.0768]
[1731274616637,0.00772036,79590.0,79587.0,0.125647]
[1731274616947,0.12594221,79589.0,79584.0,0.0768]
[1731274617153,0.125651,79585.0,79584.0,0.0768]
[1731274617364,0.125658,79581.0,79580.0,0.00168]
[1731274617588,0.25160021,79581.0,79580.0,0.00168]
[1731274617808,0.25435943,79581.0,79580.0,0.00168]
[1731274617975,0.36518627,79581.0,79580.0,0.00168]
[1731274619191,0.88818627,79581.0,79580.0,0.00168]
[1731274620403,0.62870143,79581.0,79580.0,0.127339]
[1731274620621,0.12870143,79581.0,79580.0,0.00168]
[1731274620795,0.25435943,79581.0,79580.0,0.00168]
[1731274624456,0.12870143,79581.0,79580.0,0.00168]
[1731274624724,0.00275922,79581.0,79580.0,0.2214735]
[1731274624931,0.19081178,79588.0,79584.0,0.125653]
[1731274625182,0.19081178,79588.0,79587.0,0.125648]
[1731274625632,0.21544169,79597.0,79586.0,0.2513]
[1731274625863,0.12594221,79596.0,79583.0,0.005]
[1731274626045,0.12594221,79596.0,79595.0,0.125636]
[1731274626758,0.12594221,79596.0,79583.0,0.005]
[1731274626977,0.12594221,79596.0,79592.0,0.12564]
[1731274627187,0.12594221,79596.0,79589.0,0.251287]
[1731274627394,0.12594221,79596.0,79591.0,0.12564]
[1731274627622,0.12594221,79596.0,79590.0,0.125643]
[1731274627819,0.12594221,79596.0,79591.0,0.125641]
[1731274628920,0.12594221,79596.0,79581.0,0.19081178]
[1731274628921,0.69081178,79595.0,79580.0,0.13008]
[1731274629170,0.023,79591.0,79581.0,0.19081178]
[1731274629413,0.023,79587.0,79580.0,0.08308]
[1731274629654,0.125653,79584.0,79580.0,0.08308]
[1731274629876,0.12594221,79586.0,79580.0,0.08308]
[1731274629877,0.648658,79581.0,79580.0,0.00168]
[1731274630081,0.77460021,79581.0,79580.0,0.00168]
[1731274630559,1.01054242,79581.0,79580.0,0.00168]
[1731274630815,1.01054242,79581.0,79573.0,0.01220043]
[1731274630816,0.125669,79574.0,79573.0,0.01220043]
[1731274631086,0.648688,79562.0,79561.0,0.19081178]
[1731274631304,0.148689,79561.0,79560.0,0.00142]
[1731274631508,0.38977391,79561.0,79560.0,0.00142]
[1731274632614,0.49977391,79561.0,79560.0,0.00142]
[1731274633315,0.53720911,79561.0,79560.0,0.00142]
[1731274633521,0.49977391,79561.0,79560.0,0.00142]
[1731274634418,0.54092827,79561.0,79560.0,0.00142]
[1731274635059,0.73174005,79561.0,79560.0,0.00142]
[1731274635285,0.748713,79546.0,79545.0,0.001422]
[1731274635504,1.55865521,79546.0,79545.0,0.001422]
[1731274635937,1.56865521,79546.0,79545.0,0.001422]
[1731274638184,1.61006022,79546.0,79545.0,0.001422]
[1731274638654,1.60006022,79546.0,79545.0,0.001422]
[1731274638878,1.69843518,79546.0,79545.0,0.001422]
[1731274640842,1.723078,79546.0,79545.0,0.001422]
[1731274642872,0.235718,79543.0,79542.0,0.00106728]
[1731274643080,0.50816021,79543.0,79542.0,0.00106728]
[1731274648848,0.65385002,79543.0,79542.0,0.00106728]
[1731274649052,0.77979223,79543.0,79542.0,0.00106728]
[1731274650010,0.65385002,79543.0,79542.0,0.00106728]
[1731274650205,0.50816021,79543.0,79542.0,0.00106728]
[1731274655865,0.50816021,79543.0,79518.0,0.0763]
[1731274655866,0.125756,79519.0,79518.0,0.26711178]
[1731274656028,0.25169821,79519.0,79518.0,0.26711178]
[1731274656204,0.25169821,79519.0,79518.0,0.0763]
[1731274656419,1.7125,79522.0,79518.0,0.0763]
[1731274656627,1.7125,79522.0,79521.0,0.125752]
[1731274657595,1.7125,79522.0,79518.0,0.0763]
[1731274657837,0.125756,79519.0,79518.0,0.0713]
[1731274658047,0.25169821,79519.0,79518.0,0.0713]
[1731274660447,0.12594221,79519.0,79518.0,0.0713]
[1731274660648,0.25169821,79519.0,79518.0,0.0713]
[1731274661082,0.37764042,79519.0,79518.0,0.0713]
[1731274661289,0.125769,79511.0,79509.0,0.0467]
[1731274661499,0.12594221,79510.0,79509.0,0.0467]
[1731274661779,0.12594221,79510.0,79509.0,0.1232]
[1731274662223,0.12594221,79510.0,79498.0,0.251578]
[1731274662224,0.29680314,79510.0,79494.0,0.0765]
[1731274662435,0.1,79506.0,79494.0,0.39310578]
[1731274662644,0.12594221,79505.0,79494.0,0.0765]
[1731274662852,0.251562,79503.0,79494.0,0.0765]
[1731274663068,0.125785,79501.0,79494.0,0.0765]
[1731274663293,0.25172821,79500.0,79494.0,0.0765]
[1731274663496,0.12594221,79500.0,79494.0,0.0765]
[1731274663700,0.125791,79497.0,79494.0,0.0765]
[1731274663923,0.04198031,79504.0,79494.0,0.0765]
[1731274663924,0.12594221,79496.0,79494.0,0.0765]
[1731274664372,0.125794,79495.0,79494.0,0.0765]
[1731274664654,0.12594221,79495.0,79494.0,0.0765]
[1731274665285,0.25173621,79495.0,79494.0,0.0765]
[1731274665540,0.25173621,79495.0,79478.0,0.005]
[1731274665541,0.251591,79494.0,79478.0,0.005]
[1731274665756,0.125809,79486.0,79479.0,0.125818]
[1731274665966,0.125812,79484.0,79480.0,0.168865]
[1731274666177,0.12594221,79483.0,79480.0,0.168865]
[1731274666388,0.12594221,79483.0,79480.0,0.294681]
[1731274666618,0.12594221,79483.0,79480.0,0.168865]
[1731274666833,0.16738125,79494.0,79480.0,0.168865]
[1731274667018,0.02572982,79490.0,79482.0,0.005]
[1731274667234,0.5,79496.0,79488.0,0.125805]
[1731274667235,0.12594221,79489.0,79488.0,0.125805]
[1731274667938,0.12594221,79489.0,79486.0,0.125807]
[1731274668179,0.12594221,79489.0,79484.0,0.005]
[1731274668400,0.12594221,79489.0,79486.0,0.125808]
[1731274669010,0.12594221,79489.0,79484.0,0.005]
[1731274669011,0.02667468,79488.0,79484.0,0.005]
[1731274669231,0.12594221,79487.0,79481.0,0.125816]
[1731274669461,0.12594221,79487.0,79480.0,0.294682]
[1731274669677,0.12594221,79487.0,79480.0,0.168865]
[1731274669892,0.125808,79486.0,79480.0,0.168865]
[1731274670116,0.1,79483.0,79480.0,0.168865]
[1731274670320,0.12594221,79482.0,79480.0,0.168865]
[1731274671444,0.12594221,79482.0,79481.0,0.125816]
[1731274671655,0.12594221,79482.0,79480.0,0.168865]
[1731274671852,0.16847675,79482.0,79480.0,0.168865]
[1731274673164,0.12594221,79482.0,79480.0,0.168865]
[1731274674220,0.02502822,79481.0,79480.0,0.168865]
[1731274674430,0.15097043,79481.0,79480.0,0.168865]
[1731274674846,0.27678643,79481.0,79480.0,0.168865]
[1731274678241,0.37678643,79481.0,79480.0,0.092365]
[1731274678446,0.50272864,79481.0,79480.0,0.092365]
[1731274679054,0.37678643,79481.0,79480.0,0.092365]
[1731274682792,0.39978643,79481.0,79480.0,0.092365]
[1731274683360,0.25097043,79481.0,79480.0,0.092365]
[1731274683816,0.37678643,79481.0,79480.0,0.092365]
[1731274684544,0.37678643,79481.0,79480.0,0.093204]
[1731274685030,0.50272864,79481.0,79480.0,0.093204]
[1731274685190,0.67141845,79481.0,79480.0,0.093204]
[1731274685368,0.68141845,79481.0,79480.0,0.093204]
[1731274686604,0.68141845,79481.0,79465.0,0.001422]
[1731274686605,0.5,79467.0,79465.0,0.001422]
[1731274686808,0.5,79467.0,79462.0,0.001424]
[1731274686809,0.235844,79463.0,79462.0,0.001424]
[1731274687009,0.38478621,79463.0,79462.0,0.001424]
[1731274687264,0.37478621,79463.0,79462.0,0.001424]
[1731274687463,0.25135344,79463.0,79462.0,0.082224]
[1731274687881,0.12594221,79463.0,79462.0,0.20807]
[1731274688080,0.35033618,79475.0,79465.0,0.005]
[1731274688375,0.19081178,79480.0,79474.0,0.125827]
[1731274688595,0.19081178,79480.0,79476.0,0.125824]
[1731274688596,0.025427,79477.0,79476.0,0.125824]
[1731274688748,0.025427,79477.0,79476.0,0.208724]
[1731274688949,0.025427,79477.0,79476.0,0.0829]
[1731274689336,0.15136921,79477.0,79476.0,0.0829]
[1731274689539,0.25136921,79477.0,79476.0,0.0829]
[1731274690915,0.37719121,79477.0,79476.0,0.0829]
[1731274691124,0.22594221,79477.0,79476.0,0.0829]
[1731274691369,0.35176421,79477.0,79476.0,0.0829]
[1731274691600,0.22594221,79477.0,79476.0,0.0829]
[1731274692001,0.45853427,79477.0,79476.0,0.0829]
[1731274692615,0.22594221,79477.0,79476.0,0.0829]
[1731274692815,0.35176421,79477.0,79476.0,0.0829]
[1731274693342,0.22594221,79477.0,79476.0,0.0829]
[1731274695455,0.22594221,79477.0,79476.0,0.208724]
[1731274695663,0.22594221,79477.0,79476.0,0.0829]
[1731274696062,0.22594221,79477.0,79476.0,0.208724]
[1731274696425,0.22594221,79477.0,79476.0,0.0829]
[1731274697348,0.35188442,79477.0,79476.0,0.0829]
[1731274697900,0.35188442,79477.0,79476.0,0.083739]
[1731274698320,0.22594221,79477.0,79476.0,0.083739]
[1731274700508,0.35176421,79477.0,79476.0,0.083739]
[1731274700950,0.35176421,79477.0,79476.0,0.000839]
[1731274700951,0.38476421,79477.0,79476.0,0.000839]
[1731274701153,0.69576421,79477.0,79476.0,0.000839]
[1731274701356,0.73496828,79477.0,79476.0,0.000839]
[1731274701473,1.36091049,79477.0,79476.0,0.000839]
[1731274701899,1.09914628,79477.0,79476.0,0.000839]
[1731274702095,1.18576421,79477.0,79476.0,0.000839]
[1731274704378,1.03694221,79477.0,79476.0,0.000839]
[1731274704630,1.16276421,79477.0,79476.0,0.000839]
[1731274705128,1.18576421,79477.0,79476.0,0.000839]
[1731274705302,1.31170642,79477.0,79476.0,0.000839]
[1731274705444,1.35093302,79477.0,79476.0,0.000839]
[1731274706253,1.07616881,79477.0,79476.0,0.000839]
[1731274706477,1.03694221,79477.0,79476.0,0.000839]
[1731274708116,1.16276421,79477.0,79476.0,0.000839]
[1731274708864,1.03694221,79477.0,79476.0,0.000839]
[1731274709064,1.16276421,79477.0,79476.0,0.000839]
[1731274709263,1.03694221,79477.0,79476.0,0.000839]
[1731274709503,0.1,79477.0,79476.0,0.126663]
[1731274709705,0.684,79485.0,79484.0,0.125811]
[1731274709909,0.12594221,79485.0,79484.0,0.27150081]
[1731274710096,0.12594221,79485.0,79484.0,0.203311]
[1731274710331,0.5,79495.0,79484.0,0.0825]
[1731274710534,0.12594221,79494.0,79493.0,0.125797]
[1731274710910,0.12594221,79494.0,79493.0,0.248597]
[1731274711342,0.19081178,79500.0,79499.0,0.125787]
[1731274711675,0.12594221,79500.0,79499.0,0.125787]
[1731274713206,0.12594221,79500.0,79497.0,0.251581]
[1731274713499,0.12594221,79500.0,79499.0,0.125787]
[1731274714189,0.684,79502.0,79497.0,0.251581]
[1731274714396,0.684,79502.0,79501.0,0.204284]
[1731274714952,0.19081178,79524.0,79515.0,0.125762]
[1731274715156,0.19081178,79524.0,79515.0,0.204262]
[1731274715378,0.5,79544.0,79533.0,0.125732]
[1731274715578,0.5,79544.0,79525.0,0.251493]
[1731274715579,0.19081178,79534.0,79525.0,0.251493]
[1731274715902,0.12594221,79533.0,79530.0,0.125737]
[1731274716697,0.12594221,79533.0,79532.0,0.125735]
[1731274717089,0.10084,79543.0,79537.0,0.125726]
[1731274717279,0.1,79541.0,79538.0,0.125724]
[1731274717484,0.1,79539.0,79538.0,0.125724]
[1731274717781,0.1,79539.0,79527.0,0.251485]
[1731274717782,0.1,79538.0,79527.0,0.251484]
[1731274717960,0.1,79536.0,79528.0,0.19081178]
[1731274718124,0.1,79536.0,79520.0,0.02]
[1731274718125,0.1,79534.0,79520.0,0.02]
[1731274718325,0.023,79532.0,79520.0,0.02]
[1731274718526,0.12594221,79531.0,79520.0,0.02]
[1731274718758,0.14874,79529.0,79520.0,0.02]
[1731274718938,0.023,79527.0,79522.0,0.12575]
[1731274719269,0.023,79527.0,79520.0,0.02]
[1731274719270,0.023,79525.0,79520.0,0.02]
[1731274719456,0.62594221,79526.0,79520.0,0.02]
[1731274719457,0.148752,79521.0,79520.0,0.02]
[1731274719638,0.47731323,79521.0,79520.0,0.02]
[1731274719845,0.47731323,79521.0,79510.0,0.02]
[1731274719846,0.725768,79511.0,79510.0,0.02]
[1731274720007,1.55871021,79511.0,79510.0,0.21081178]
[1731274720211,1.55871021,79511.0,79510.0,0.02]
[1731274720698,1.68465242,79511.0,79510.0,0.02]
[1731274720908,0.123,79510.0,79498.0,0.19081178]
[1731274721117,0.023,79501.0,79498.0,0.19081178]
[1731274721331,0.023,79499.0,79493.0,0.125796]
[1731274721551,0.12594221,79498.0,79491.0,0.251599]
[1731274721763,0.12594221,79498.0,79494.0,0.125794]
[1731274722434,0.12594221,79498.0,79486.0,0.0785]
[1731274722752,0.12594221,79498.0,79495.0,0.125793]
[1731274723158,0.12594221,79498.0,79493.0,0.125797]
[1731274723942,0.12594221,79498.0,79489.0,0.125802]
[1731274723943,0.125793,79496.0,79489.0,0.125802]
[1731274724146,0.12594221,79495.0,79488.0,0.25161]
[1731274724328,0.12594221,79495.0,79490.0,0.125801]
[1731274724531,0.12594221,79495.0,79492.0,0.02]
[1731274724730,0.25173721,79495.0,79492.0,0.02]
[1731274725043,0.12594221,79495.0,79492.0,0.02]
[1731274725253,0.12594221,79495.0,79494.0,0.125795]
[1731274726117,4e-05,79500.0,79499.0,0.125787]
[1731274726323,0.14898221,79500.0,79499.0,0.125787]
[1731274726722,0.14898221,79500.0,79495.0,0.251588]
[1731274726947,0.12594221,79499.0,79497.0,0.125789]
[1731274727152,4e-05,79500.0,79499.0,0.125787]
[1731274728021,4e-05,79500.0,79496.0,0.251584]
[1731274728231,4e-05,79500.0,79499.0,0.125787]
[1731274728999,4e-05,79500.0,79492.0,0.02]
[1731274729333,0.12594221,79499.0,79492.0,0.02]
[1731274729538,0.12594221,79499.0,79494.0,0.125794]
[1731274730189,0.148797,79493.0,79492.0,0.02]
[1731274730357,0.95873921,79493.0,79492.0,0.02]
[1731274731148,1.05873921,79493.0,79492.0,0.02]
[1731274732124,0.12582,79479.0,79476.0,0.19165078]
[1731274732331,0.12594221,79478.0,79476.0,0.19165078]
[1731274732533,0.12594221,79478.0,79476.0,0.000839]
[1731274733700,0.12594221,79478.0,79477.0,0.125822]
[1731274733911,0.023,79490.0,79476.0,0.000839]
[1731274734133,0.19081178,79488.0,79476.0,0.000839]
[1731274734331,0.19081178,79488.0,79487.0,0.125806]
[1731274734533,0.19081178,79488.0,79476.0,0.000839]
[1731274734534,0.125822,79478.0,79476.0,0.00335522]
[1731274734763,0.148822,79477.0,79476.0,0.000839]
[1731274735498,0.27476421,79477.0,79476.0,0.000839]
[1731274737169,0.29977765,79477.0,79476.0,0.000839]
[1731274745903,0.04105564,79480.0,79476.0,0.000839]
[1731274746169,0.35033618,79489.0,79488.0,0.125805]
[1731274746302,0.311,79493.0,79488.0,0.15827031]
[1731274746489,0.487,79505.0,79499.0,0.206887]
[1731274746743,1.184,79511.0,79499.0,0.206887]
[1731274747362,1.22401219,79511.0,79499.0,0.206887]
[1731274747596,0.12577,79510.0,79499.0,0.206887]
[1731274747789,0.1,79510.0,79499.0,0.206887]
[1731274748379,0.125777,79506.0,79499.0,0.0811]
[1731274748612,0.1,79507.0,79499.0,0.206887]
[1731274749223,0.14898221,79500.0,79486.0,0.0807]
[1731274749424,0.251595,79493.0,79486.0,0.0807]
[1731274749588,0.125801,79491.0,79486.0,0.0807]
[1731274749791,0.12594221,79490.0,79486.0,0.0807]
[1731274749992,0.12594221,79490.0,79477.0,0.0807]
[1731274749993,0.125815,79482.0,79477.0,0.0807]
[1731274750305,0.023,79480.0,79479.0,0.19081178]
[1731274750529,0.14894221,79480.0,79477.0,0.0807]
[1731274750803,0.14894221,79480.0,79469.0,0.251668]
[1731274750804,0.148822,79477.0,79469.0,0.0807]
[1731274751004,0.27476421,79477.0,79469.0,0.0807]
[1731274751221,0.27476421,79477.0,79470.0,0.19081178]
[1731274752380,0.14894221,79477.0,79472.0,0.12583]
[1731274752692,0.27476421,79477.0,79469.0,0.0807]
[1731274753302,0.27476421,79477.0,79471.0,0.125831]
[1731274753481,0.14894221,79477.0,79470.0,0.44247578]
[1731274753633,0.12594221,79477.0,79476.0,0.126663]
[1731274753840,0.023,79493.0,79476.0,0.21964888]
[1731274754037,0.31675399,79492.0,79490.0,0.125801]
[1731274754247,0.311,79495.0,79491.0,0.082]
[1731274754458,0.05618093,79503.0,79499.0,0.125787]
[1731274754632,0.05618093,79503.0,79491.0,0.082]
[1731274754633,0.12598221,79500.0,79491.0,0.082]
[1731274754838,0.80994221,79499.0,79492.0,0.19081178]
[1731274755036,0.80994221,79499.0,79491.0,0.082]
[1731274755239,0.12579,79498.0,79491.0,0.207799]
[1731274755464,0.37752621,79497.0,79491.0,0.082]
[1731274755653,0.125793,79496.0,79491.0,0.082]
[1731274755850,0.12594221,79495.0,79491.0,0.082]
[1731274756259,0.12594221,79495.0,79494.0,0.125795]
[1731274756868,4e-05,79500.0,79493.0,0.251594]
[1731274757075,0.12598221,79500.0,79493.0,0.251594]
[1731274757296,0.12598221,79500.0,79491.0,0.082]
[1731274757297,0.19081178,79498.0,79491.0,0.082]
[1731274757495,0.12598221,79500.0,79497.0,0.125789]
[1731274758123,0.12598221,79500.0,79492.0,0.251597]
[1731274758496,0.12598221,79500.0,79498.0,0.125788]
[1731274758682,0.12598221,79500.0,79495.0,0.125793]
[1731274758808,0.12598221,79500.0,79494.0,0.251591]
[1731274759030,0.12594221,79499.0,79491.0,0.082]
[1731274759249,0.25172921,79499.0,79491.0,0.207799]
[1731274759870,0.12594221,79499.0,79492.0,0.125797]
[1731274760335,0.12594221,79499.0,79494.0,0.125794]
[1731274760531,0.12594221,79499.0,79491.0,0.082]
[1731274760729,0.12594221,79499.0,79497.0,0.12579]
[1731274761274,0.12594221,79499.0,79498.0,0.04]
[1731274761985,0.12594221,79499.0,79498.0,0.165789]
[1731274762387,0.12594221,79499.0,79498.0,0.04]
[1731274765492,0.12594221,79499.0,79498.0,0.165789]
[1731274765911,0.12594221,79499.0,79498.0,0.04]
[1731274766046,4e-05,79500.0,79498.0,0.04]
[1731274766263,4e-05,79500.0,79499.0,0.125787]
[1731274766691,4e-05,79500.0,79499.0,0.2554026]
[1731274767125,4e-05,79500.0,79499.0,0.2604026]
[1731274767323,4e-05,79500.0,79499.0,0.2704026]
[1731274767597,4e-05,79500.0,79499.0,0.27574495]
[1731274768044,4e-05,79500.0,79499.0,0.26574495]
[1731274768470,4e-05,79500.0,79499.0,0.257887]
[1731274768841,4e-05,79500.0,79499.0,0.26040237]
[1731274769003,4e-05,79500.0,79499.0,0.2682603]
[1731274769210,4e-05,79500.0,79499.0,0.26574493]
[1731274769429,4e-05,79500.0,79499.0,0.2782603]
[1731274769629,4e-05,79500.0,79499.0,0.27574493]
[1731274770456,4e-05,79500.0,79499.0,0.26574493]
[1731274770976,4e-05,79500.0,79499.0,0.27326016]
[1731274771178,0.00168,79539.0,79515.0,0.201162]
[1731274771360,0.125732,79535.0,79515.0,0.201162]
[1731274771570,0.04132575,79538.0,79515.0,0.201162]
[1731274771761,0.16705275,79538.0,79515.0,0.201162]
[1731274772188,0.251456,79537.0,79515.0,0.201162]
[1731274772387,0.02486187,79537.0,79515.0,0.201162]
[1731274772617,0.12573,79536.0,79515.0,0.201162]
[1731274773116,0.12573,79536.0,79515.0,0.24202003]
[1731274773317,0.02486187,79537.0,79515.0,0.24202003]
[1731274773517,0.02486187,79537.0,79515.0,0.24702003]
[1731274773689,0.125731,79535.0,79515.0,0.24702003]
[1731274773895,0.40204587,79537.0,79515.0,0.24702003]
[1731274774092,0.125729,79536.0,79515.0,0.24702003]
[1731274774517,0.125731,79535.0,79515.0,0.24702003]
[1731274774716,0.15058987,79537.0,79515.0,0.24702003]
[1731274776872,0.27631887,79537.0,79515.0,0.24702003]
[1731274777372,0.12573,79536.0,79515.0,0.24702003]
[1731274777589,0.251469,79533.0,79515.0,0.201162]
[1731274777801,0.125741,79529.0,79515.0,0.206162]
[1731274778243,0.125733,79534.0,79515.0,0.206162]
[1731274778385,0.125734,79533.0,79515.0,0.206162]
[1731274780380,0.27631887,79537.0,79515.0,0.206162]
[1731274780583,0.125736,79532.0,79515.0,0.206162]
[1731274782107,0.125732,79534.0,79515.0,0.206162]
[1731274782348,0.27631887,79537.0,79515.0,0.206162]
[1731274782534,0.125731,79535.0,79515.0,0.206162]
[1731274782736,0.00168,79539.0,79515.0,0.26947695]
[1731274782942,0.00168,79539.0,79515.0,0.2783331]
[1731274783203,0.00168,79539.0,79515.0,0.27381815]
[1731274784581,0.127404,79539.0,79515.0,0.27381815]
[1731274784801,0.00168,79539.0,79515.0,0.27381815]
[1731274786793,0.125727,79538.0,79515.0,0.27381815]
[1731274787224,0.127405,79539.0,79515.0,0.27381815]
[1731274787448,0.00168,79539.0,79515.0,0.27381815]
[1731274788015,0.00168,79539.0,79515.0,0.26381815]
[1731274788216,0.125745,79526.0,79515.0,0.20901815]
[1731274788399,0.251471,79532.0,79515.0,0.206162]
[1731274788601,0.251455,79537.0,79515.0,0.206162]
[1731274788935,0.125734,79533.0,79515.0,0.21401869]
[1731274789136,0.251468,79533.0,79515.0,0.21401869]
[1731274789566,0.125733,79534.0,79515.0,0.21653363]
[1731274789764,0.125736,79532.0,79515.0,0.21401869]
[1731274789904,0.877227,79528.0,79515.0,0.13361869]
[1731274790109,0.125734,79533.0,79515.0,0.125762]
[1731274790576,0.10168,79539.0,79515.0,0.125762]
[1731274790785,0.10168,79539.0,79515.0,0.13361874]
[1731274791029,0.00168,79539.0,79515.0,0.15113333]
[1731274791255,0.00168,79539.0,79515.0,0.19411874]
[1731274791684,0.00168,79539.0,79538.0,0.35048267]
[1731274791942,0.00168,79539.0,79538.0,0.204826]
[1731274792139,0.00168,79539.0,79538.0,0.21519467]
[1731274792773,0.00168,79539.0,79538.0,0.2126805]
[1731274793883,0.00168,79539.0,79538.0,0.21268028]
[1731274794348,0.00168,79539.0,79538.0,0.21519471]
[1731274794773,0.00168,79539.0,79538.0,0.23019471]
[1731274794985,0.00168,79539.0,79538.0,0.23219471]
[1731274795576,0.00168,79539.0,79538.0,0.45813692]
[1731274795742,0.00168,79539.0,79538.0,0.45562275]
[1731274795942,0.00084,79543.0,79542.0,0.269119]
[1731274796168,0.00084,79543.0,79542.0,0.54857242]
[1731274796376,0.00084,79543.0,79542.0,0.55857242]
[1731274796871,0.00084,79543.0,79542.0,0.6232896]
[1731274797082,0.000712,79579.0,79564.0,0.130684]
[1731274797285,0.000712,79579.0,79564.0,0.13319722]
[1731274797492,0.000712,79579.0,79564.0,0.14319722]
[1731274800854,0.000712,79579.0,79564.0,0.15104847]
[1731274801054,0.000712,79579.0,79564.0,0.14853525]
[1731274801268,0.125663,79578.0,79564.0,0.14853525]
[1731274801412,0.000712,79579.0,79564.0,0.14853525]
[1731274801755,0.25133,79577.0,79564.0,0.14853525]
[1731274801972,0.125663,79578.0,79564.0,0.14853525]
[1731274802267,0.000712,79579.0,79564.0,0.14353525]
[1731274802468,0.125663,79578.0,79564.0,0.14853525]
[1731274802616,0.126373,79579.0,79564.0,0.14853525]
[1731274802817,0.000712,79579.0,79564.0,0.19641009]
[1731274803342,0.000712,79579.0,79564.0,0.50103848]
[1731274803536,0.000712,79579.0,79564.0,0.49852526]
[1731274803745,0.000712,79579.0,79564.0,0.4985255]
[1731274804654,0.000712,79579.0,79564.0,0.27029711]
[1731274804871,0.000712,79579.0,79564.0,0.28281014]
[1731274805083,0.000712,79579.0,79564.0,0.26495865]
[1731274805248,0.000712,79579.0,79564.0,0.27495865]
[1731274805451,0.000712,79579.0,79564.0,0.27781018]
[1731274805683,0.000712,79579.0,79564.0,0.25744562]
[1731274806035,0.000712,79579.0,79564.0,0.26244562]
[1731274807039,0.125663,79578.0,79564.0,0.26244562]
[1731274807158,0.000712,79579.0,79564.0,0.26244562]
[1731274809284,0.000712,79579.0,79564.0,0.26495881]
[1731274809719,0.000712,79579.0,79564.0,0.26244562]
[1731274809990,0.126374,79579.0,79564.0,0.26244562]
[1731274810140,0.125664,79577.0,79564.0,0.26495881]
[1731274810352,0.000712,79579.0,79564.0,0.26244562]
[1731274810935,0.125665,79577.0,79564.0,0.26244562]
[1731274811160,0.251349,79571.0,79564.0,0.01]
[1731274811365,0.126395,79565.0,79564.0,0.01]
[1731274811570,0.27641584,79565.0,79564.0,0.01]
[1731274811771,0.25233721,79565.0,79564.0,0.01]
[1731274813867,0.48703721,79565.0,79564.0,0.01]
[1731274814067,0.49703721,79565.0,79564.0,0.01]
[1731274814732,0.53863683,79565.0,79564.0,0.01]
[1731274814935,0.50563683,79565.0,79564.0,0.01]
[1731274815158,0.251376,79562.0,79556.0,0.19081178]
[1731274815279,0.125696,79557.0,79548.0,0.19081178]
[1731274815484,0.5,79554.0,79537.0,0.251453]
[1731274815712,0.125717,79544.0,79537.0,0.125727]
[1731274816237,0.12594221,79553.0,79534.0,0.19081178]
[1731274816471,0.19081178,79552.0,79532.0,0.0778]
[1731274816596,0.125728,79537.0,79529.0,0.125739]
[1731274816947,0.5,79538.0,79525.0,0.19081178]
[1731274817182,0.125741,79529.0,79525.0,0.19081178]
[1731274817557,0.12594221,79528.0,79518.0,0.125756]
[1731274817760,0.125752,79522.0,79518.0,0.19081178]
[1731274817967,0.25169321,79522.0,79515.0,0.125761]
[1731274818609,0.12594221,79522.0,79511.0,0.19081178]
[1731274818806,0.12594221,79522.0,79516.0,0.12576]
[1731274819433,0.12594221,79522.0,79511.0,0.19081178]
[1731274819684,0.12594221,79522.0,79519.0,0.125755]
[1731274819971,0.12594221,79522.0,79512.0,0.125766]
[1731274820170,0.12594221,79522.0,79513.0,0.19081178]
[1731274820375,0.25169321,79522.0,79515.0,0.125761]
[1731274820531,0.125753,79521.0,79511.0,0.251537]
[1731274820733,0.12594221,79522.0,79512.0,0.251534]
[1731274820981,0.12594221,79522.0,79515.0,0.125762]
[1731274821314,0.12594221,79522.0,79512.0,0.251534]
[1731274821315,0.12594221,79522.0,79516.0,0.12576]
[1731274821517,0.12594221,79522.0,79512.0,0.251534]
[1731274821518,0.12594221,79522.0,79517.0,0.125758]
[1731274821787,0.12594221,79522.0,79509.0,0.0778]
[1731274821788,0.12594221,79522.0,79521.0,0.125752]
[1731274822001,0.12594221,79522.0,79520.0,0.125753]
[1731274822568,0.12594221,79522.0,79521.0,0.125752]
[1731274822763,0.12594221,79522.0,79516.0,0.251519]
[1731274823187,0.12594221,79522.0,79513.0,0.19081178]
[1731274823401,0.19081178,79520.0,79509.0,0.0778]
[1731274823636,0.25169721,79520.0,79511.0,0.19081178]
[1731274823830,0.12594221,79520.0,79512.0,0.00251508]
[1731274824031,0.125744,79527.0,79514.0,0.251528]
[1731274824234,0.31675399,79526.0,79514.0,0.251528]
[1731274824556,0.31675399,79526.0,79511.0,0.19081178]
[1731274824557,0.12594221,79526.0,79515.0,0.00251501]
[1731274824745,1.7125,79528.0,79527.0,0.125743]
[1731274824951,1.83844221,79528.0,79527.0,0.125743]